{"text_format":"1","workbook":"xlsx","n_sheets":3,"sheets":["ORÇAMENTO","MÉMORIA DE CÁLCULO","COMPOSIÇÕES"],"not_rendered":{"charts":0,"images":0,"macros":1,"external_links":0,"defined_names":15,"comments":0,"pivot_tables":0},"unopened":[],"bounds":{"document_bytes":16777216,"sheet_cells":100000,"rows_first":2000,"rows_last":500,"rows_between":2000,"halvings":0,"cell_chars":16384,"cell_head_chars":4096},"cells_cut":0,"cells_raw":0,"read":"whole","date_system":"1900"}

{"sheet":"ORÇAMENTO","index":0,"n_rows":65,"n_cols":11,"rows_kept":65,"cut":false,"hidden":false,"merged":[[64,1,64,9],[24,1,24,10],[33,2,33,10],[35,1,35,5],[35,6,35,10],[63,1,63,8],[0,1,0,10],[3,3,3,4],[2,1,2,10],[1,1,1,10],[4,2,4,8],[5,2,5,8],[46,2,46,8],[40,2,40,8],[59,2,59,8],[56,2,56,8],[32,2,32,8],[19,2,19,8],[41,2,41,8],[47,2,47,8],[57,2,57,8],[52,2,52,8],[9,2,9,8],[10,2,10,8],[18,2,18,8],[16,2,16,10],[7,2,7,10]]}
[null,"PLANILHA ORÇAMENTÁRIA"]
[null,"PAVIMENTAÇÃO EM BLOCO SEXTAVADO (TRECHO COLUNA) - FASE 2"]
[null,"SÃO JOÃO DA MATA - MINAS GERAIS"]
[null,"SUB-ITEM","REFERÊNCIA","CÓDIGO",null,"SERVIÇO","UNID","QTDE","PREÇO UNITÁRIO","PREÇO COM BDI 21,78%","PREÇO DO SERVIÇO"]
[null,"1. ","PRELIMINARES"]
[null,"1.1","INSTALAÇÃO PLACA DE OBRA"]
[null,"1.1.1","COMPOSIÇÃO","COMP-OBR-001","-","FORNECIMENTO E INSTALAÇÃO DE PLACA DE OBRA PARA CONSTRUÇÃO CIVIL EM CHAPA DE AÇO GALVANIZADA 2,00 X 1,125 M","M2",2.25,587.39,{"$f":"I7*21.78%+I7","v":715.32354199999997},{"$f":"H7*J7","v":1609.4779695}]
[null,"1.2","INSTALAÇÃO CANTEIRO DE OBRAS"]
[null,"1.2.1","SINAPI - DEZ / 22",93208,"-","EXECUÇÃO DE ALMOXARIFADO EM CANTEIRO DE OBRA EM CHAPA DE MADEIRA COMPENSADA, INCLUSO PRATELEIRAS. AF_02/2016","M2",7.5,1069.8,{"$f":"I9*21.78%+I9","v":1302.8024399999999},{"$f":"H9*J9","v":9771.0182999999997}]
[null,"2.","TERRAPLENAGEM E LOCAÇÃO DE OBRA"]
[null,"2.1","TERRAPLENAGEM"]
[null,"2.1.1","SINAPI - DEZ / 22",98525,"-","LIMPEZA MECANIZADA DE CAMADA VEGETAL, VEGETAÇÃO E PEQUENAS ÁRVORES (DIÂMETRO DE TRONCO MENOR QUE 0,20 M), COM TRATOR DE ESTEIRAS.AF_05/2018","M2",911.9,0.37,{"$f":"I12*21.78%+I12","v":0.45058599999999999},{"$f":"H12*J12","v":410.88937339999995}]
[null,"OBSERVAÇÃO: OS ITENS 2.1.2 E 2.1.3 REFEREM-SE, RESPECTIVAMENTE, À ESCAVAÇÃO PARA REAPROVEITAMENTO NA PISTA E PARA DESCARTE"]
[null,"2.1.2","SETOP - OUT/22","RO-40150","-","ESCAVAÇÃO, CARGA, DESCARGA, ESPALHAMENTO E TRANSPORTE DE MATERIAL DE 1ª CATEGORIA, COM CAMINHÃO. DISTÂNCIA MÉDIA DE TRANSPORTE  DE 401 A 600 M","M3",91.22,6.79,{"$f":"I14*21.78%+I14","v":8.2688620000000004},{"$f":"H14*J14","v":754.28559164000001}]
[null,"2.1.3","SETOP - OUT/21","RO-40158","-","ESCAVAÇÃO, CARGA, DESCARGA, ESPALHAMENTO E TRANSPORTE DE MATERIAL DE 1ª CATEGORIA, COM CAMINHÃO. DISTÂNCIA MÉDIA DE TRANSPORTE  DE 2.001 A 2.500 M","M3",252.66,10.27,{"$f":"I15*21.78%+I15","v":12.506805999999999},{"$f":"H15*J15","v":3159.9696039599999}]
[null,"2.1.4","SINAPI - DEZ / 22",96385,"-","EXECUÇÃO E COMPACTAÇÃO DE ATERRO COM SOLO PREDOMINANTEMENTE ARGILOSO - EXCLUSIVE SOLO, ESCAVAÇÃO, CARGA E TRANSPORTE. AF_11/2019","M3",91.22,10.26,{"$f":"I16*21.78%+I16","v":12.494628000000001},{"$f":"H16*J16","v":1139.75996616}]
[null,"2.2","LOCAÇÃO DA OBRA"]
[null,"2.2.1","SINAPI - DEZ / 22",99064,"-","LOCAÇÃO DE PAVIMENTAÇÃO. AF_10/2018","M",353.28,0.59,{"$f":"I18*21.78%+I18","v":0.71850199999999997},{"$f":"H18*J18","v":253.83238655999997}]
[null,"3.","PAVIMENTAÇÃO"]
[null,"3.1","PAVIMENTO, SARJETA E GUIA"]
[null,"3.1.1","SETOP - OUT/21","RO-41082","OBR-VIA-130","REGULARIZAÇÃO DO SUB-LEITO (PROCTOR INTERMEDIÁRIO)","M2",2106.375,1.24,{"$f":"I21*21.78%+I21","v":1.5100720000000001},{"$f":"H21*J21","v":3180.7779090000004}]
[null,"OBSERVAÇÃO: OS ITENS 3.1.2 E 3.1.3 REFEREM-SE AO TRANSPORTE DA AREIA"]
[null,"3.1.2","SINAPI - DEZ / 22",95875,"-","TRANSPORTE COM CAMINHÃO BASCULANTE DE 10 M³, EM VIA URBANA PAVIMENTADA, DMT ATÉ 30 KM (UNIDADE: M3XKM). AF_07/2020","M3XKM",3159.6,2.23,{"$f":"I23*21.78%+I23","v":2.7156940000000001},{"$f":"H23*J23","v":8580.5067624000003}]
[null,"3.1.3","SINAPI - DEZ / 22",93590,"-","TRANSPORTE COM CAMINHÃO BASCULANTE DE 10 M³, EM VIA URBANA PAVIMENTADA, ADICIONAL PARA DMT EXCEDENTE A 30 KM (UNIDADE: M3XKM). AF_07/2020","M3XKM",1625.0875999999998,0.88,{"$f":"I24*21.78%+I24","v":1.0716639999999999},{"$f":"H24*J24","v":1741.5478777663998}]
[null,"OBSERVAÇÃO: OS ITENS 3.1.4 E 3.1.5 REFEREM-SE AO TRANSPORTE DOS BLOCOS SEXTAVADOS"]
[null,"3.1.4","SINAPI - DEZ / 22",95875,"-","TRANSPORTE COM CAMINHÃO BASCULANTE DE 10 M³, EM VIA URBANA PAVIMENTADA, DMT ATÉ 30 KM (UNIDADE: M3XKM). AF_07/2020","M3XKM",5055.2999999999993,2.23,{"$f":"I26*21.78%+I26","v":2.7156940000000001},{"$f":"H26*J26","v":13728.647878199998}]
[null,"3.1.5","SINAPI - DEZ / 22",93590,"-","TRANSPORTE COM CAMINHÃO BASCULANTE DE 10 M³, EM VIA URBANA PAVIMENTADA, ADICIONAL PARA DMT EXCEDENTE A 30 KM (UNIDADE: M3XKM). AF_07/2020","M3XKM",1651.3979999999995,0.88,1.0716639999999999,1769.7437862719994]
[null,"3.1.6","SINAPI - DEZ / 22",92394,"-","EXECUÇÃO DE PAVIMENTO EM PISO INTERTRAVADO, COM BLOCO SEXTAVADO DE 25 X 25 CM, ESPESSURA 8 CM. AF_12/2015","M2",2106.375,69.38,84.490963999999991,177969.65429549999]
[null,"3.1.7","SINAPI - DEZ / 22",94287,"-","EXECUÇÃO DE SARJETA DE CONCRETO USINADO, MOLDADA  IN LOCO  EM TRECHO RETO, 30 CM BASE X 10 CM ALTURA. AF_06/2016","M",350.56,44.69,54.423482,19078.695849920001]
[null,"3.1.8","SINAPI - DEZ / 22",94288,"-","EXECUÇÃO DE SARJETA DE CONCRETO USINADO, MOLDADA  IN LOCO  EM TRECHO CURVO, 30 CM BASE X 10 CM ALTURA. AF_06/2016","M",295,54.2,66.004760000000005,19471.404200000001]
[null,"3.1.9","SINAPI - DEZ / 22",94273,"-","ASSENTAMENTO DE GUIA (MEIO-FIO) EM TRECHO RETO, CONFECCIONADA EM CONCRETO PRÉ-FABRICADO, DIMENSÕES 100X15X13X30 CM (COMPRIMENTO X BASE INFERIOR X BASE SUPERIOR X ALTURA), PARA VIAS URBANAS (USO VIÁRIO). AF_06/2016","M",350.56,68.319999999999993,83.200095999999988,29166.625653759995]
[]
[null,"3.","PAVIMENTAÇÃO (CONTINUAÇÃO)"]
[null,"3.1","PAVIMENTO, SARJETA E GUIA (CONTINUAÇÃO)"]
[null,"3.1.10","SINAPI - DEZ / 22",94274,"-","ASSENTAMENTO DE GUIA (MEIO-FIO) EM TRECHO CURVO, CONFECCIONADA EM CONCRETO PRÉ-FABRICADO, DIMENSÕES 100X15X13X30 CM (COMPRIMENTO X BASE INFERIOR X BASE SUPERIOR X ALTURA), PARA VIAS URBANAS (USO VIÁRIO). AF_06/2016","M",295,71.91,{"$f":"I35*21.78%+I35","v":87.571997999999994},{"$f":"H35*J35","v":25833.739409999998}]
[null,"OBSERVAÇÃO: O ITEM 3.1.11 REFERE-SE ÀS VIGAS DE CONTENÇÃO LATERAL"]
[null,"3.1.11","SINAPI - DEZ / 22",94265,"-","GUIA (MEIO-FIO) CONCRETO, MOLDADA  IN LOCO  EM TRECHO RETO COM EXTRUSORA, 15 CM BASE X 30 CM ALTURA. AF_06/2016","M",6,46.24,{"$f":"I37*21.78%+I37","v":56.311072000000003},{"$f":"H37*J37","v":337.86643200000003}]
[null,"3.1.12","COMPOSIÇÃO","COMP-DRE-001","-","EXECUÇÃO DE SARJETÃO DE CONCRETO ARMADO MOLDADO IN LOCO, 45 CM BASE x 10CM ALTURA","M",49,84,{"$f":"I38*21.78%+I38","v":102.29519999999999},{"$f":"H38*J38","v":5012.4647999999997}]
[null,"3.1.13","SINAPI - DEZ / 22",94991,"-","EXECUÇÃO DE PASSEIO (CALÇADA) OU PISO DE CONCRETO COM CONCRETO MOLDADO IN LOCO, USINADO, ACABAMENTO CONVENCIONAL, NÃO ARMADO. AF_07/2016","M3",8.1449999999999996,801.61,{"$f":"I39*21.78%+I39","v":976.20065799999998},{"$f":"H39*J39","v":7951.1543594099994}]
[null,"3.1.14","SINAPI - DEZ / 22",94992,"-","EXECUÇÃO DE PASSEIO (CALÇADA) OU PISO DE CONCRETO COM CONCRETO MOLDADO IN LOCO, FEITO EM OBRA, ACABAMENTO CONVENCIONAL, ESPESSURA 6 CM, ARMADO. AF_07/2016","M2",14.25,86.68,{"$f":"I40*21.78%+I40","v":105.55890400000001},{"$f":"H40*J40","v":1504.2143820000001}]
[null,"4.","ABASTECIMENTO DE ÁGUA POTÁVEL"]
[null,"4.1","INSTALAÇÃO DE TUBULAÇÃO"]
[null,"4.1.1","SINAPI - DEZ / 22",101266,"-","ESCAVAÇÃO VERTICAL A CÉU ABERTO, EM OBRAS DE INFRAESTRUTURA, INCLUINDO CARGA, DESCARGA E TRANSPORTE, EM SOLO DE 1ª CATEGORIA COM ESCAVADEIRA HIDRÁULICA (CAÇAMBA: 0,8 M³ / 111HP), FROTA DE 3 CAMINHÕES BASCULANTES DE 10 M³, DMT ATÉ 1 KM E VELOCIDADE MÉDIA14KM/H. AF_05/2020","M3",316.91000000000003,10.52,{"$f":"I43*21.78%+I43","v":12.811256},{"$f":"H43*J43","v":4060.0151389600005}]
[null,"4.1.2","SINAPI - DEZ / 22",101619,"-","PREPARO DE FUNDO DE VALA COM LARGURA MENOR QUE 1,5 M, COM CAMADA DE BRITA, LANÇAMENTO MANUAL. AF_08/2020","M3",7.92,266.86,{"$f":"I44*21.78%+I44","v":324.98210800000004},{"$f":"H44*J44","v":2573.8582953600003}]
[null,"4.1.3","COMPOSIÇÃO","COMP-RFA-001","-","INSTALAÇÃO DE TUBULAÇÃO DE ABASTECIMENTO DE ÁGUA POTÁVEL","U",1,9858.64,{"$f":"I45*21.78%+I45","v":12005.851791999999},{"$f":"H45*J45","v":12005.851791999999}]
[null,"4.1.4","SINAPI - DEZ / 22",93360,"-","REATERRO MECANIZADO DE VALA COM ESCAVADEIRA HIDRÁULICA (CAPACIDADE DA CAÇAMBA: 0,8 M³ / POTÊNCIA: 111 HP), LARGURA DE 1,5 A 2,5 M, PROFUNDIDADE ATÉ 1,5 M, COM SOLO DE 1ª CATEGORIA EM LOCAIS COM ALTO NÍVEL DE INTERFERÊNCIA. AF_04/2016","M3",316.91000000000003,21.65,{"$f":"I46*21.78%+I46","v":26.365369999999999},{"$f":"H46*J46","v":8355.4494066999996}]
[null,"5.","DRENAGEM PLUVIAL"]
[null,"5.1","REDE TUBULAR"]
[null,"5.1.1","SINAPI - DEZ / 22",101266,"-","ESCAVAÇÃO VERTICAL A CÉU ABERTO, EM OBRAS DE INFRAESTRUTURA, INCLUINDO CARGA, DESCARGA E TRANSPORTE, EM SOLO DE 1ª CATEGORIA COM ESCAVADEIRA HIDRÁULICA (CAÇAMBA: 0,8 M³ / 111HP), FROTA DE 3 CAMINHÕES BASCULANTES DE 10 M³, DMT ATÉ 1 KM E VELOCIDADE MÉDIA14KM/H. AF_05/2020","M3",8.2799999999999994,10.52,{"$f":"I49*21.78%+I49","v":12.811256},{"$f":"H49*J49","v":106.07719967999999}]
[null,"5.1.2","SINAPI - DEZ / 22",101619,"-","PREPARO DE FUNDO DE VALA COM LARGURA MENOR QUE 1,5 M, COM CAMADA DE BRITA, LANÇAMENTO MANUAL. AF_08/2020","M3",1.72,266.86,{"$f":"I50*21.78%+I50","v":324.98210800000004},{"$f":"H50*J50","v":558.96922576000009}]
[null,"5.1.3","SINAPI - DEZ / 22",95568,"-","TUBO DE CONCRETO (SIMPLES) PARA REDES COLETORAS DE ÁGUAS PLUVIAIS, DIÂMETRO DE 400 MM, JUNTA RÍGIDA, INSTALADO EM LOCAL COM BAIXO NÍVEL DE INTERFERÊNCIAS - FORNECIMENTO E ASSENTAMENTO. AF_12/2015","M",13.8,142.53,{"$f":"I51*21.78%+I51","v":173.57303400000001},{"$f":"H51*J51","v":2395.3078692000004}]
[null,"5.1.4","SINAPI - DEZ / 22",93367,"-","REATERRO MECANIZADO DE VALA COM ESCAVADEIRA HIDRÁULICA (CAPACIDADE DA CAÇAMBA: 0,8 M³ / POTÊNCIA: 111 HP), LARGURA DE 1,5 A 2,5 M, PROFUNDIDADE ATÉ 1,5 M, COM SOLO DE 1ª CATEGORIA EM LOCAIS COM BAIXO NÍVEL DE INTERFERÊNCIA. AF_04/2016","M3",4.83,20.190000000000001,{"$f":"I52*21.78%+I52","v":24.587382000000002},{"$f":"H52*J52","v":118.75705506000001}]
[null,"5.2","BOCAS DE LOBO"]
[null,"5.2.1","SICRO - JUL/21",2003453,"-","DISSIPADOR DE ENERGIA - DEB 03 - AREIA, BRITA E PEDRA DE MÃO COMERCIAIS","U",2,1032.5,{"$f":"I54*21.78%+I54","v":1257.3785},{"$f":"H54*J54","v":2514.7570000000001}]
[null,"5.2.2","SETOP - OUT/21","ED-48549","DRE-BOC-005","BOCA DE LOBO SIMPLES (TIPO A - FERRO FUNDIDO), QUADRO, GRELHA E CANTONEIRA, INCLUSIVE ESCAVAÇÃO, REATERRO E BOTA-FORA","U",4,2546.96,{"$f":"I55*21.78%+I55","v":3101.6878879999999},{"$f":"H55*J55","v":12406.751552}]
[]
[null,"6.","SINALIZAÇÃO VIÁRIA"]
[null,"6.1","SINALIZAÇÃO HORIZONTAL"]
[null,"6.1.1","SETOP - OUT/21","RO-41237","OBR-VIA-245","LINHAS DE RESINA ACRILICA DE  0,6MM  DE ESPESSURA E LARGURA  = 0,10M (EXECUÇÃO, INCLUINDO PRÉ-MARCAÇÃO, FORNECIMENTO E TRANSPORTE DE TODOS OS MATERIAIS)","M",353.28,2.65,{"$f":"I59*21.78%+I59","v":3.2271700000000001},{"$f":"H59*J59","v":1140.0946176}]
[null,"6.2","SINALIZAÇÃO VERTICAL"]
[null,"6.2.1","SETOP - OUT/21","RO-41841","-","PLACA DE AÇO CARBONO COM PELÍCULA REFLETIVA GRAU TÉCNICO TIPO I DA ABNT - PLACA CIRCULAR (EXECUÇÃO, INCLUINDO FORNECIMENTO E TRANSPORTE DE TODOS OS MATERIAIS, INCLUSIVE POSTE DE SUSTENTAÇÃO)","M2",0.39269908169872414,470.34,{"$f":"I61*21.78%+I61","v":572.78005199999996},{"$f":"H61*J61","v":224.93020043574745}]
[null,"6.2.2","SETOP - OUT/21","RO-41844","-","PLACA DE AÇO CARBONO COM PELÍCULA REFLETIVA GRAU TÉCNICO TIPO I DA ABNT - PLACA QUADRADA (EXECUÇÃO, INCLUINDO FORNECIMENTO E TRANSPORTE DE TODOS OS MATERIAIS, INCLUSIVE POSTE DE SUSTENTAÇÃO)","M2",0.40500000000000003,456.75,{"$f":"I62*21.78%+I62","v":556.23014999999998},{"$f":"H62*J62","v":225.27321075}]
[null,"6.2.3","COMPOSIÇÃO","COMP-SIN-001","-","EXECUÇÃO DE BASE DE CONCRETO SIMPLES PARA FIXAÇÃO DAS HASTES DE SINALIZAÇÃO","U",2,60.58,{"$f":"I63*21.78%+I63","v":73.774324000000007},{"$f":"H63*J63","v":147.54864800000001}]
[]
[null,"TOTAL COM BDI:",null,null,null,null,null,null,null,null,{"$f":"K7+K9+K12+K14+K15+K16+K18+K21+K23+K24+K26+K27+K28+K29+K30+K31+K35+K37+K38+K39+K40+K43+K44+K45+K46+K49+K50+K51+K52+K54+K55+K59+K61+K62+K63","v":379259.91799895413}]

{"sheet":"MÉMORIA DE CÁLCULO","index":1,"n_rows":65,"n_cols":9,"rows_kept":65,"cut":false,"hidden":false,"merged":[[64,1,66,8],[59,2,59,7],[56,2,56,8],[57,2,57,7],[46,2,46,8],[47,2,47,7],[52,2,52,7],[1,1,1,8],[0,1,0,8],[18,2,18,8],[9,2,9,8],[4,2,4,8],[3,3,3,4],[5,2,5,7],[7,2,7,7],[10,2,10,7],[16,2,16,7],[19,2,19,7],[2,1,2,8],[40,2,40,8],[41,2,41,7],[32,2,32,8],[33,2,33,7]]}
[null,"MEMÓRIA DE CÁLCULO - QUANTITATIVOS"]
[null,"PAVIMENTAÇÃO EM BLOCO SEXTAVADO (TRECHO COLUNA) - FASE 2"]
[null,"SÃO JOÃO DA MATA - MINAS GERAIS"]
[null,"SUB-ITEM","REFERÊNCIA","CÓDIGO",null,"SERVIÇO","UNID","QTDE","MEMORIAL DE CÁLCULO"]
[null,"1. ","PRELIMINARES"]
[null,"1.1","INSTALAÇÃO PLACA DE OBRA"]
[null,"1.1.1","COMPOSIÇÃO","COMP-OBR-001","-","FORNECIMENTO E INSTALAÇÃO DE PLACA DE OBRA PARA CONSTRUÇÃO CIVIL EM CHAPA DE AÇO GALVANIZADA 2,00 X 1,125 M","M2",2.25,"1 unidade de 2,00 x 1,125 = 2,25 m²"]
[null,"1.2","INSTALAÇÃO CANTEIRO DE OBRAS"]
[null,"1.2.1","SINAPI - NOV/21",93208,"-","EXECUÇÃO DE ALMOXARIFADO EM CANTEIRO DE OBRA EM CHAPA DE MADEIRA COMPENSADA, INCLUSO PRATELEIRAS. AF_02/2016","M2",7.5,"2,5m (comprimento) x 3,0m (largura) = 7,50m²"]
[null,"2.","TERRAPLENAGEM E LOCAÇÃO DE OBRA"]
[null,"2.1","TERRAPLENAGEM"]
[null,"2.1.1","SINAPI - NOV/21",98525,"-","LIMPEZA MECANIZADA DE CAMADA VEGETAL, VEGETAÇÃO E PEQUENAS ÁRVORES (DIÂMETRO DE TRONCO MENOR QUE 0,20 M), COM TRATOR DE ESTEIRAS.AF_05/2018","M2",911.9,"Considerada a área de projeção da via projetada menos a área existente, portanto: 2462,16 - 1550,26 = 911,90M2"]
[null,"OBSERVAÇÃO: OS ITENS 2.1.2 E 2.1.3 REFEREM-SE, RESPECTIVAMENTE, À ESCAVAÇÃO PARA REAPROVEITAMENTO NA PISTA E PARA DESCARTE"]
[null,"2.1.2","SETOP - OUT/21","RO-40150","-","ESCAVAÇÃO, CARGA, DESCARGA, ESPALHAMENTO E TRANSPORTE DE MATERIAL DE 1ª CATEGORIA, COM CAMINHÃO. DISTÂNCIA MÉDIA DE TRANSPORTE  DE 401 A 600 M","M3",91.22,"Volume de aterro= 91,22 M3(ver seções)"]
[null,"2.1.3","SETOP - OUT/21","RO-40158","-","ESCAVAÇÃO, CARGA, DESCARGA, ESPALHAMENTO E TRANSPORTE DE MATERIAL DE 1ª CATEGORIA, COM CAMINHÃO. DISTÂNCIA MÉDIA DE TRANSPORTE  DE 2.001 A 2.500 M","M3",252.66,"Volume de corte= 252,66 M3(ver seções)"]
[null,"2.1.4","SINAPI - NOV/21",96385,"-","EXECUÇÃO E COMPACTAÇÃO DE ATERRO COM SOLO PREDOMINANTEMENTE ARGILOSO - EXCLUSIVE SOLO, ESCAVAÇÃO, CARGA E TRANSPORTE. AF_11/2019","M3",91.22,"Volume de aterro= 91,22 M3(ver seções)"]
[null,"2.2","LOCAÇÃO DA OBRA"]
[null,"2.2.1","SINAPI - NOV/21",99064,"-","LOCAÇÃO DE PAVIMENTAÇÃO. AF_10/2018","M",353.28,"Extensão da via =  353,28 M"]
[null,"3.","PAVIMENTAÇÃO"]
[null,"3.1","PAVIMENTO, SARJETA E GUIA"]
[null,"3.1.1","SETOP - OUT/21","RO-41082","OBR-VIA-130","REGULARIZAÇÃO DO SUB-LEITO (PROCTOR INTERMEDIÁRIO)","M2",2106.38,"Área de blocos sextavados:168,51 (Volume de bloco sextavado) / 0,08 (espessura do bloco) = 2106,38 M2"]
[null,"OBSERVAÇÃO: OS ITENS 3.1.2 E 3.1.3 REFEREM-SE AO TRANSPORTE DA AREIA"]
[null,"3.1.2","SINAPI - NOV/21",95875,"-","TRANSPORTE COM CAMINHÃO BASCULANTE DE 10 M³, EM VIA URBANA PAVIMENTADA, DMT ATÉ 30 KM (UNIDADE: M3XKM). AF_07/2020","M3XKM",3159.6,"105,32 (Volume de areia) x 30Km= 3159,6 M3XKM"]
[null,"3.1.3","SINAPI - NOV/21",93590,"-","TRANSPORTE COM CAMINHÃO BASCULANTE DE 10 M³, EM VIA URBANA PAVIMENTADA, ADICIONAL PARA DMT EXCEDENTE A 30 KM (UNIDADE: M3XKM). AF_07/2020","M3XKM",1625.09,"105,32 (Volume de areia) x (45,43 - 30Km) =1625,09 M3XKM"]
[null,"OBSERVAÇÃO: OS ITENS 3.1.4 E 3.1.5 REFEREM-SE AO TRANSPORTE DOS BLOCOS SEXTAVADOS"]
[null,"3.1.4","SINAPI - NOV/21",95875,"-","TRANSPORTE COM CAMINHÃO BASCULANTE DE 10 M³, EM VIA URBANA PAVIMENTADA, DMT ATÉ 30 KM (UNIDADE: M3XKM). AF_07/2020","M3XKM",5055.2999999999993,"168,51 (Volume de blocos) x 30Km =5055,3 M3XKM"]
[null,"3.1.5","SINAPI - NOV/21",93590,"-","TRANSPORTE COM CAMINHÃO BASCULANTE DE 10 M³, EM VIA URBANA PAVIMENTADA, ADICIONAL PARA DMT EXCEDENTE A 30 KM (UNIDADE: M3XKM). AF_07/2020","M3XKM",1651.4,"168,51 (Volume de blocos) x (39,8 - 30Km) =1651,4 M3XKM"]
[null,"3.1.6","SINAPI - NOV/21",92394,"-","EXECUÇÃO DE PAVIMENTO EM PISO INTERTRAVADO, COM BLOCO SEXTAVADO DE 25 X 25 CM, ESPESSURA 8 CM. AF_12/2015","M2",2106.38,"Área de blocos sextavados:168,51 (Volume de bloco sextavado) / 0,08 (espessura do bloco) = 2106,38 M2"]
[null,"3.1.7","SINAPI - NOV/21",94287,"-","EXECUÇÃO DE SARJETA DE CONCRETO USINADO, MOLDADA  IN LOCO  EM TRECHO RETO, 30 CM BASE X 10 CM ALTURA. AF_06/2016","M",350.56,"Somatória das sarjetas executadas em trecho reto, conforme projeto = 350,56 M"]
[null,"3.1.8","SINAPI - NOV/21",94288,"-","EXECUÇÃO DE SARJETA DE CONCRETO USINADO, MOLDADA  IN LOCO  EM TRECHO CURVO, 30 CM BASE X 10 CM ALTURA. AF_06/2016","M",295,"Somatória das sarjetas executadas em trecho curvo, conforme projeto = 295 M"]
[null,"3.1.9","SINAPI - NOV/21",94273,"-","ASSENTAMENTO DE GUIA (MEIO-FIO) EM TRECHO RETO, CONFECCIONADA EM CONCRETO PRÉ-FABRICADO, DIMENSÕES 100X15X13X30 CM (COMPRIMENTO X BASE INFERIOR X BASE SUPERIOR X ALTURA), PARA VIAS URBANAS (USO VIÁRIO). AF_06/2016","M",350.56,"Somatória das guias assentadas em trecho reto, conforme projeto = 350,56 M"]
[]
[null,"3.","PAVIMENTAÇÃO (CONTINUAÇÃO)"]
[null,"3.","PAVIMENTAÇÃO (CONTINUAÇÃO)"]
[null,"3.1.10","SINAPI - NOV/21",94274,"-","ASSENTAMENTO DE GUIA (MEIO-FIO) EM TRECHO CURVO, CONFECCIONADA EM CONCRETO PRÉ-FABRICADO, DIMENSÕES 100X15X13X30 CM (COMPRIMENTO X BASE INFERIOR X BASE SUPERIOR X ALTURA), PARA VIAS URBANAS (USO VIÁRIO). AF_06/2016","M",295,"Somatória das guias assentadas em trecho cuvo, conforme projeto = 295 M"]
[null,"OBSERVAÇÃO: O ITEM 3.1.11 REFERE-SE ÀS VIGAS DE CONTENÇÃO LATERAL"]
[null,"3.1.11","SINAPI - NOV/21",94265,"-","GUIA (MEIO-FIO) CONCRETO, MOLDADA  IN LOCO  EM TRECHO RETO COM EXTRUSORA, 15 CM BASE X 30 CM ALTURA. AF_06/2016","M",6,"Guias / contenção:6 M"]
[null,"3.1.12","COMPOSIÇÃO","COMP-DRE-001","-","EXECUÇÃO DE SARJETÃO DE CONCRETO ARMADO MOLDADO IN LOCO, 45 CM BASE x 10CM ALTURA","M",49,"Somatória de sarjetão de concreto armado, conforme projeto = 49 M"]
[null,"3.1.13","SINAPI - NOV/21",94991,"-","EXECUÇÃO DE PASSEIO (CALÇADA) OU PISO DE CONCRETO COM CONCRETO MOLDADO IN LOCO, USINADO, ACABAMENTO CONVENCIONAL, NÃO ARMADO. AF_07/2016","M3",8.1449999999999996,"Volume de calçada de concreto não armado = 8,145 M3"]
[null,"3.1.14","SINAPI - NOV/21",94992,"-","EXECUÇÃO DE PASSEIO (CALÇADA) OU PISO DE CONCRETO COM CONCRETO MOLDADO IN LOCO, FEITO EM OBRA, ACABAMENTO CONVENCIONAL, ESPESSURA 6 CM, ARMADO. AF_07/2016","M2",14.25,"Área de calçada de concreto não armado = 14,25 M2"]
[null,"4.","ABASTECIMENTO DE ÁGUA POTÁVEL"]
[null,"4.1","INSTALAÇÃO DE TUBULAÇÃO",0,0,0,0,0]
[null,"4.1.1","SINAPI - NOV/21",101266,"-","ESCAVAÇÃO VERTICAL A CÉU ABERTO, EM OBRAS DE INFRAESTRUTURA, INCLUINDO CARGA, DESCARGA E TRANSPORTE, EM SOLO DE 1ª CATEGORIA COM ESCAVADEIRA HIDRÁULICA (CAÇAMBA: 0,8 M³ / 111HP), FROTA DE 3 CAMINHÕES BASCULANTES DE 10 M³, DMT ATÉ 1 KM E VELOCIDADE MÉDIA14KM/H. AF_05/2020","M3",316.91000000000003,"0,5 x 1,8 x 352,12 = 316,91M3 (volume de escavação)"]
[null,"4.1.2","SINAPI - NOV/21",101619,"-","PREPARO DE FUNDO DE VALA COM LARGURA MENOR QUE 1,5 M, COM CAMADA DE BRITA, LANÇAMENTO MANUAL. AF_08/2020","M3",7.92,"0,15 x 0,15 x 352,12 = 7,92M3 (volume de brita)"]
[null,"4.1.3","COMPOSIÇÃO","COMP-RFA-001","-","INSTALAÇÃO DE TUBULAÇÃO DE ABASTECIMENTO DE ÁGUA POTÁVEL","U",1,"Composição para instalação de 352,12m da estaca 29+10m até estaca 47+3,28  = 352,12M     "]
[null,"4.1.4","SINAPI - NOV/21",93360,"-","REATERRO MECANIZADO DE VALA COM ESCAVADEIRA HIDRÁULICA (CAPACIDADE DA CAÇAMBA: 0,8 M³ / POTÊNCIA: 111 HP), LARGURA DE 1,5 A 2,5 M, PROFUNDIDADE ATÉ 1,5 M, COM SOLO DE 1ª CATEGORIA EM LOCAIS COM ALTO NÍVEL DE INTERFERÊNCIA. AF_04/2016","M3",316.91000000000003,"0,5 x 1,8 x 352,12 = 316,91M3 (volume de escavação)"]
[null,"5.","DRENAGEM PLUVIAL"]
[null,"5.1","REDE TUBULAR"]
[null,"5.1.1","SINAPI - NOV/21",101266,"-","ESCAVAÇÃO VERTICAL A CÉU ABERTO, EM OBRAS DE INFRAESTRUTURA, INCLUINDO CARGA, DESCARGA E TRANSPORTE, EM SOLO DE 1ª CATEGORIA COM ESCAVADEIRA HIDRÁULICA (CAÇAMBA: 0,8 M³ / 111HP), FROTA DE 3 CAMINHÕES BASCULANTES DE 10 M³, DMT ATÉ 1 KM E VELOCIDADE MÉDIA14KM/H. AF_05/2020","M3",8.2799999999999994,"(0,7 + 0,5) x 0,5 = 0,6 m² (área transversal de corte) x  (comprimento da rede tubular) = 8,28m³"]
[null,"5.1.2","SINAPI - NOV/21",101619,"-","PREPARO DE FUNDO DE VALA COM LARGURA MENOR QUE 1,5 M, COM CAMADA DE BRITA, LANÇAMENTO MANUAL. AF_08/2020","M3",1.72,"0,5 x 0,5 (área total) - (pi x 0,2 x 0,2) (área do tubo) x 6 (largura da via) x 13,8 (comprimento da rede tubular) = 1,72 M3"]
[null,"5.1.3","SINAPI - NOV/21",95568,"-","TUBO DE CONCRETO (SIMPLES) PARA REDES COLETORAS DE ÁGUAS PLUVIAIS, DIÂMETRO DE 400 MM, JUNTA RÍGIDA, INSTALADO EM LOCAL COM BAIXO NÍVEL DE INTERFERÊNCIAS - FORNECIMENTO E ASSENTAMENTO. AF_12/2015","M",13.8,"6 m (extensão da via) + (2 x 0,45) (sarjeta + guia) x 2 (rede tubular entre bocas de lobo) = 13,8 M"]
[null,"5.1.4","SINAPI - NOV/21",93367,"-","REATERRO MECANIZADO DE VALA COM ESCAVADEIRA HIDRÁULICA (CAPACIDADE DA CAÇAMBA: 0,8 M³ / POTÊNCIA: 111 HP), LARGURA DE 1,5 A 2,5 M, PROFUNDIDADE ATÉ 1,5 M, COM SOLO DE 1ª CATEGORIA EM LOCAIS COM BAIXO NÍVEL DE INTERFERÊNCIA. AF_04/2016","M3",4.83,"0,7 x 0,5 = 0,35 m² (área transversal) x 13,8 (comprimento da rede tubular) = 4,83 M3"]
[null,"5.2","BOCAS DE LOBO"]
[null,"5.2.1","SICRO - JUL/21",2003453,"-","DISSIPADOR DE ENERGIA - DEB 03 - AREIA, BRITA E PEDRA DE MÃO COMERCIAIS","U",2,"2 unidades"]
[null,"5.2.2","SETOP - OUT/21","ED-48549","DRE-BOC-005","BOCA DE LOBO SIMPLES (TIPO A - FERRO FUNDIDO), QUADRO, GRELHA E CANTONEIRA, INCLUSIVE ESCAVAÇÃO, REATERRO E BOTA-FORA","U",4,"4 unidades"]
[]
[null,"6.","SINALIZAÇÃO VIÁRIA"]
[null,"6.1","SINALIZAÇÃO HORIZONTAL"]
[null,"6.1.1","SETOP - OUT/21","RO-41237","OBR-VIA-245","LINHAS DE RESINA ACRILICA DE  0,6MM  DE ESPESSURA E LARGURA  = 0,10M (EXECUÇÃO, INCLUINDO PRÉ-MARCAÇÃO, FORNECIMENTO E TRANSPORTE DE TODOS OS MATERIAIS)","M",1059.8399999999999,"Extensão da via x 3 eixos =  1059,84 M"]
[null,"6.2","SINALIZAÇÃO VERTICAL",0,0,0,0]
[null,"6.2.1","SETOP - OUT/21","RO-41841","-","PLACA DE AÇO CARBONO COM PELÍCULA REFLETIVA GRAU TÉCNICO TIPO I DA ABNT - PLACA CIRCULAR (EXECUÇÃO, INCLUINDO FORNECIMENTO E TRANSPORTE DE TODOS OS MATERIAIS, INCLUSIVE POSTE DE SUSTENTAÇÃO)","M2",0.39,"Quantidade de placas circulares: 2 x 0,196 (área da placa) = 0,39 M2"]
[null,"6.2.2","SETOP - OUT/21","RO-41844","-","PLACA DE AÇO CARBONO COM PELÍCULA REFLETIVA GRAU TÉCNICO TIPO I DA ABNT - PLACA QUADRADA (EXECUÇÃO, INCLUINDO FORNECIMENTO E TRANSPORTE DE TODOS OS MATERIAIS, INCLUSIVE POSTE DE SUSTENTAÇÃO)","M2",0.41,"Quantidade de placas quadradas: 2 x 0,203 (área da placa) = 0,41 M2"]
[null,"6.2.3","COMPOSIÇÃO","COMP-SIN-001","-","EXECUÇÃO DE BASE DE CONCRETO SIMPLES PARA FIXAÇÃO DAS HASTES DE SINALIZAÇÃO","U",2,"Total de postes: 0 (placas simples) + 2 (placas duplas) = 2 U"]
[]
[null,"OBSERVAÇÃO: TODOS OS VOLUMES DE MATERIAIS (SUB BASE, BASE, CBUQ, SARJETA, CORTE E ATERRO) FORAM CALCULADOS PELO MÉTODO DAS SEÇÕES, CONFORME APRESENTADO EM PROJETO.\nFÓRMULA:\nV (m³) = d x [Si + S(i+1)]/2\nONDE \"d\" É A DISTÂNCIA ENTRE AS SEÇÕES, \"S\" É A ÁREA DO MATERIAL EM CORTE E \"i\" REFERE-SE A ESTACA DE CÁLCULO"]

{"sheet":"COMPOSIÇÕES","index":2,"n_rows":38,"n_cols":10,"rows_kept":38,"cut":false,"hidden":false,"merged":[[24,1,25,9],[3,3,3,4],[0,1,0,9],[1,1,1,9],[2,1,2,9],[4,1,4,9]]}
[null,"PLANILHA ORÇAMENTÁRIA - COMPOSIÇÕES"]
[null,"PAVIMENTAÇÃO EM BLOCO SEXTAVADO (TRECHO COLUNA) - FASE 2"]
[null,"SÃO JOÃO DA MATA - MINAS GERAIS"]
[null,"SUB-ITEM","REFERÊNCIA","CÓDIGO",null,"SERVIÇO","UNID","COEF.","PREÇO UNITÁRIO","PREÇO SUBITEM"]
[null,"COMPOSIÇÕES"]
[]
[null,"COMP-OBR-001","SINAPI - NOV/21",4417,"-","SARRAFO NAO APARELHADO *2,5 X 7* CM, EM MACARANDUBA, ANGELIM OU EQUIVALENTE DA REGIAO -  BRUTA","M     ",1]
[null,"COMP-OBR-001","SINAPI - NOV/21",4491,"-","PONTALETE *7,5 X 7,5* CM EM PINUS, MISTA OU EQUIVALENTE DA REGIAO - BRUTA","M     ",4]
[null,"COMP-OBR-001","SINAPI - NOV/21",4813,"-","PLACA DE OBRA (PARA CONSTRUCAO CIVIL) EM CHAPA GALVANIZADA *N. 22*, ADESIVADA, DE *2,4 X 1,2* M (SEM POSTES PARA FIXACAO)","M2    ",1]
[null,"COMP-OBR-001","SINAPI - NOV/21",5075,"-","PREGO DE ACO POLIDO COM CABECA 18 X 30 (2 3/4 X 10)","KG    ",0.11]
[null,"COMP-OBR-001","SINAPI - NOV/21",88262,"-","CARPINTEIRO DE FORMAS COM ENCARGOS COMPLEMENTARES","H",1]
[null,"COMP-OBR-001","SINAPI - NOV/21",88316,"-","SERVENTE COM ENCARGOS COMPLEMENTARES","H",2]
[null,"COMP-OBR-001","SINAPI - NOV/21",94962,"-","CONCRETO MAGRO PARA LASTRO, TRAÇO 1:4,5:4,5 (EM MASSA SECA DE CIMENTO/ AREIA MÉDIA/ BRITA 1) - PREPARO MECÂNICO COM BETONEIRA 400 L. AF_05/2021","M3",0.01]
[null,"COMP-OBR-001","-","-","-","FORNECIMENTO E INSTALAÇÃO DE PLACA DE OBRA PARA CONSTRUÇÃO CIVIL EM CHAPA DE AÇO GALVANIZADA 2,00 X 1,125 M","M2","-"]
[]
[null,"COMP-DRE-001","SINAPI - NOV/21",370,"-","AREIA MEDIA - POSTO JAZIDA/FORNECEDOR (RETIRADO NA JAZIDA, SEM TRANSPORTE)","M3    ",3.3000000000000002E-2]
[null,"COMP-DRE-001","SINAPI - NOV/21",4517,"-","SARRAFO *2,5 X 7,5* CM EM PINUS, MISTA OU EQUIVALENTE DA REGIAO - BRUTA","M     ",0.3]
[null,"COMP-DRE-001","SINAPI - NOV/21",6189,"-","TABUA NAO APARELHADA *2,5 X 30* CM, EM MACARANDUBA, ANGELIM OU EQUIVALENTE DA REGIAO - BRUTA","M     ",0.5]
[null,"COMP-DRE-001","SINAPI - NOV/21",94971,"-","CONCRETO FCK = 25MPA, TRAÇO 1:2,3:2,7 (EM MASSA SECA DE CIMENTO/ AREIA MÉDIA/ BRITA 1) - PREPARO MECÂNICO COM BETONEIRA 600 L. AF_05/2021","M3",4.4999999999999998E-2]
[null,"COMP-DRE-001","SINAPI - NOV/21",10917,"-","TELA DE ACO SOLDADA NERVURADA, CA-60, Q-61, (0,97 KG/M2), DIAMETRO DO FIO = 3,4 MM, LARGURA = 2,45 M, ESPACAMENTO DA MALHA = 15 X 15 CM","M2    ",0.39]
[null,"COMP-DRE-001","SINAPI - NOV/21",88245,"-","ARMADOR COM ENCARGOS COMPLEMENTARES","H",1.5888600000000003E-2]
[null,"COMP-DRE-001","SINAPI - NOV/21",88309,"-","PEDREIRO COM ENCARGOS COMPLEMENTARES","H",0.83199999999999996]
[null,"COMP-DRE-001","SINAPI - NOV/21",88316,"-","SERVENTE COM ENCARGOS COMPLEMENTARES","H",0.83199999999999996]
[null,"COMP-DRE-001","-","-","-","EXECUÇÃO DE SARJETÃO DE CONCRETO ARMADO MOLDADO IN LOCO, 45 CM BASE x 10CM ALTURA","M",1]
[null,"COMPOSIÇÃO DRE-001 BASEADA NO ITEM 94293 DA SINAPI (COEFICIENTE DE VOLUME DE CONCRETO FOI CALCULADO PELA SEÇÃO DEFINIDA EM PROJETO), ADICIONADO ARMADOR (COEFICIENTE CONSIDERADO DE 0,042H POR Kg, SENDO NECESSÁRIO 1,28 kg POR M²) E TELA DE AÇO SOLDADA (1,32M² E 1,28 Kg POR METRO DE SARJETÃO)"]
[]
[]
[null,"COMP-SIN-001","SINAPI - NOV/21",93358,"-","ESCAVAÇÃO MANUAL DE VALA COM PROFUNDIDADE MENOR OU IGUAL A 1,30 M. AF_02/2021","M3",9.6000000000000002E-2]
[null,"COMP-SIN-001","SINAPI - NOV/21",94975,"-","CONCRETO FCK = 15MPA, TRAÇO 1:3,4:3,5 (EM MASSA SECA DE CIMENTO/ AREIA MÉDIA/ BRITA 1) - PREPARO MANUAL. AF_05/2021","M3",9.6000000000000002E-2]
[null,"COMP-SIN-001","SINAPI - NOV/21",88309,"-","PEDREIRO COM ENCARGOS COMPLEMENTARES","H",0.29000000000000004]
[null,"COMP-SIN-001","SINAPI - NOV/21",88316,"-","SERVENTE COM ENCARGOS COMPLEMENTARES","H",0.54]
[null,"COMP-SIN-001","-","-","-","EXECUÇÃO DE BASE DE CONCRETO SIMPLES PARA FIXAÇÃO DAS HASTES DE SINALIZAÇÃO","U",1]
[]
[null,"COMP-RFA-001","SINAPI - NOV/21",97121,"-","ASSENTAMENTO DE TUBO DE PVC PBA PARA REDE DE ÁGUA, DN 50 MM, JUNTA ELÁSTICA INTEGRADA, INSTALADO EM LOCAL COM NÍVEL ALTO DE INTERFERÊNCIAS (NÃO INCLUI FORNECIMENTO). AF_11/2017","M",352.12]
[null,"COMP-RFA-001","SINAPI - NOV/21",1206,null,"CAP, PVC PBA, JE, DN 50 / DE 60 MM,  PARA REDE DE AGUA (NBR 10351)","UN    ",1]
[null,"COMP-RFA-001","SINAPI - NOV/21",1835,null,"CURVA PVC PBA, JE, PB, 22 GRAUS, DN 50 / DE 60 MM, PARA REDE AGUA (NBR 10351)","UN    ",9]
[null,"COMP-RFA-001","SINAPI - NOV/21",36375,"-","TUBO PVC PBA JEI, CLASSE 15, DN 50 MM, PARA REDE DE AGUA (NBR 5647)","M     ",352.12]
[null,"COMP-RFA-001","-","-","-","INSTALAÇÃO DE TUBULAÇÃO DE ABASTECIMENTO DE ÁGUA POTÁVEL","U",1]